fUST/lending_fUST_20250605
["ID","MTS","AMOUNT","RATE_DAILY","PERIOD"]
[364416489,1749096647400,-160.0,0.00018779,2]
[364416490,1749096647409,-634.9,0.00018779,2]
[364416491,1749096647418,-834.95,0.00018779,2]
[364416492,1749096647427,-151.0,0.00018865,2]
[364416493,1749096647436,-229.139481,0.00018865,2]
[364416494,1749096647446,-229.139481,0.00018865,2]
[364416495,1749096647456,-1945.49950924,0.00018866,2]
[364416496,1749096647466,-872.65,0.00018904,2]
[364416497,1749096647475,-1001.54,0.00018904,2]
[364416498,1749096647485,-1271.59,0.00018904,2]
[364416500,1749096647494,-440.0,0.00018904,2]
[364416502,1749096647504,-440.0,0.00018904,2]
[364416504,1749096647513,-530.83,0.00018904,2]
[364416506,1749096647523,-440.0,0.00018904,2]
[364416508,1749096647532,-829.91,0.00018904,2]
[364416510,1749096647542,-1222.49,0.00018904,2]
[364416512,1749096647551,-160.0,0.00018944,2]
[364416514,1749096647560,-423.7637613,0.00018944,2]
[364416515,1749096647569,-160.0,0.00018945,2]
[364416517,1749096647579,-160.0,0.00018945,2]
[364416519,1749096647588,-229.48950782,0.00018945,2]
[364416521,1749096647598,-842.5625,0.00018945,2]
[364416523,1749096647607,-212.94059491,0.00018948,2]
[364416525,1749096647616,-162.527689,0.00019047,2]
[364416527,1749096647625,-162.527689,0.00019047,2]
[364416529,1749096647634,-500.0,0.00019048,2]
[364416531,1749096647643,-440.0,0.00019048,2]
[364416533,1749096647652,-440.0,0.00019048,2]
[364416535,1749096647662,-440.0,0.00019048,2]
[364416537,1749096647671,-440.0,0.00019048,2]
[364416539,1749096647680,-494.06,0.00019048,2]
[364416541,1749096647689,-440.0,0.00019048,2]
[364416543,1749096647699,-440.0,0.00019048,2]
[364416545,1749096647709,-440.0,0.00019048,2]
[364416547,1749096647718,-440.0,0.00019048,2]
[364416549,1749096647728,-380.0,0.00019048,2]
[364416551,1749096647738,-440.0,0.00019048,2]
[364416553,1749096647747,-440.0,0.00019048,2]
[364416555,1749096647757,-440.0,0.00019048,2]
[364416557,1749096647766,-449.86,0.00019048,2]
[364416559,1749096647776,-440.0,0.00019048,2]
[364416561,1749096647785,-440.0,0.00019048,2]
[364416563,1749096647795,-440.0,0.00019048,2]
[364416565,1749096647808,-440.0,0.00019048,2]
[364416566,1749096647818,-440.0,0.00019049,2]
[364416567,1749096647827,-1647.12,0.00019049,2]
[364416568,1749096647837,-505.83,0.00019049,2]
[364416569,1749096647847,-1460.94,0.00019053,2]
[364416570,1749096647857,-440.0,0.00019053,2]
[364416571,1749096647866,-654.22,0.00019053,2]
[364416572,1749096647875,-634.9,0.00019053,2]
[364416573,1749096647886,-834.95,0.00019053,2]
[364416574,1749096647897,-1945.49950924,0.00019107,2]
[364416575,1749096647906,-440.0,0.00019178,2]
[364416576,1749096647916,-440.0,0.00019178,2]
[364416577,1749096647926,-440.0,0.00019178,2]
[364416578,1749096647935,-440.0,0.00019178,2]
[364416579,1749096647944,-440.0,0.00019178,2]
[364416580,1749096647953,-440.0,0.00019178,2]
[364416581,1749096647963,-440.0,0.00019178,2]
[364416582,1749096647974,-400.0,0.00019178,2]
[364416583,1749096647983,-400.0,0.00019178,2]
[364416584,1749096647992,-400.0,0.00019178,2]
[364416585,1749096648003,-400.0,0.00019178,2]
[364416586,1749096648012,-381.7,0.00019178,2]
[364416587,1749096648022,-872.65,0.00019178,2]
[364416588,1749096648031,-1001.54,0.00019178,2]
[364416589,1749096648041,-1271.59,0.00019178,2]
[364416590,1749096648051,-440.0,0.00019178,2]
[364416591,1749096648060,-440.0,0.00019178,2]
[364416592,1749096648070,-151.0,0.00019178,2]
[364416593,1749096648079,-530.83,0.00019178,2]
[364416594,1749096648089,-440.0,0.00019178,2]
[364416595,1749096648099,-829.91,0.00019178,2]
[364416596,1749096648109,-1222.49,0.00019178,2]
[364416597,1749096648118,-500.0,0.00019178,2]
[364416598,1749096648129,-500.0,0.00019178,2]
[364416599,1749096648138,-500.0,0.00019178,2]
[364416600,1749096648148,-500.0,0.00019178,2]
[364416601,1749096648158,-500.0,0.00019178,2]
[364416602,1749096648167,-500.0,0.00019178,2]
[364416603,1749096648177,-500.0,0.00019178,2]
[364416604,1749096648187,-500.0,0.00019178,2]
[364416605,1749096648197,-500.0,0.00019178,2]
[364416606,1749096648207,-500.0,0.00019178,2]
[364416607,1749096648217,-500.0,0.00019178,2]
[364416608,1749096648226,-500.0,0.00019178,2]
[364416609,1749096648236,-500.0,0.00019178,2]
[364416610,1749096648246,-500.0,0.00019178,2]
[364416611,1749096648255,-500.0,0.00019178,2]
[364416612,1749096648265,-500.0,0.00019178,2]
[364416613,1749096648274,-500.0,0.00019178,2]
[364416614,1749096648284,-500.0,0.00019178,2]
[364416615,1749096648294,-500.0,0.00019178,2]
[364416616,1749096648303,-500.0,0.00019178,2]
[364416617,1749096648312,-500.0,0.00019178,2]
[364416618,1749096648322,-500.0,0.00019178,2]
[364416619,1749096648331,-500.0,0.00019178,2]
[364416620,1749096648341,-500.0,0.00019178,2]
[364416621,1749096648350,-365.80050308,0.00019178,2]
[364416622,1749096648359,-500.0,0.00019178,2]
[364416623,1749096648369,-500.0,0.00019178,2]
[364416624,1749096648378,-500.0,0.00019178,2]
[364416625,1749096648387,-500.0,0.00019178,2]
[364416626,1749096648397,-500.0,0.00019178,2]
[364416627,1749096648406,-500.0,0.00019178,2]
[364416628,1749096648415,-500.0,0.00019178,2]
[364416629,1749096648424,-500.0,0.00019178,2]
[364416630,1749096648433,-500.0,0.00019178,2]
[364416631,1749096648442,-500.0,0.00019178,2]
[364416632,1749096648452,-500.0,0.00019178,2]
[364416633,1749096648462,-500.0,0.00019178,2]
[364416634,1749096648471,-500.0,0.00019178,2]
[364416635,1749096648481,-500.0,0.00019178,2]
[364416636,1749096648490,-500.0,0.00019178,2]
[364416637,1749096648499,-500.0,0.00019178,2]
[364416638,1749096648508,-500.0,0.00019178,2]
[364416639,1749096648518,-500.0,0.00019178,2]
[364416640,1749096648529,-500.0,0.00019178,2]
[364416641,1749096648540,-500.0,0.00019178,2]
[364416642,1749096648550,-500.0,0.00019178,2]
[364416643,1749096648559,-500.0,0.00019178,2]
[364416644,1749096648570,-500.0,0.00019178,2]
[364416645,1749096648580,-500.0,0.00019178,2]
[364416646,1749096648589,-500.0,0.00019178,2]
[364416647,1749096648599,-500.0,0.00019178,2]
[364416648,1749096648608,-500.0,0.00019178,2]
[364416649,1749096648617,-500.0,0.00019178,2]
[364416650,1749096648627,-500.0,0.00019178,2]
[364416651,1749096648637,-500.0,0.00019178,2]
[364416652,1749096648647,-500.0,0.00019178,2]
[364416653,1749096648656,-500.0,0.00019178,2]
[364416654,1749096648665,-197.0615,0.00019178,2]
[364416655,1749096648675,-151.0,0.00019205,2]
[364416656,1749096648684,-151.0,0.00019233,2]
[364416657,1749096648694,-203.19619932,0.0001926,2]
[364416658,1749096648703,-440.0,0.00019322,2]
[364416659,1749096648712,-407.54123199,0.00019322,2]
[364416660,1749096648723,-340.0,0.00019322,2]
[364416661,1749096648733,-440.0,0.00019322,2]
[364416662,1749096648743,-494.06,0.00019322,2]
[364416663,1749096648751,-440.0,0.00019322,2]
[364416664,1749096648761,-440.0,0.00019322,2]
[364416665,1749096648771,-440.0,0.00019322,2]
[364416666,1749096648780,-440.0,0.00019322,2]
[364416667,1749096648791,-440.0,0.00019322,2]
[364416668,1749096648803,-359.20152338,0.00019322,2]
[364416670,1749096648814,-440.0,0.00019322,2]
[364416672,1749096648824,-449.86,0.00019322,2]
[364416674,1749096648833,-440.0,0.00019322,2]
[364416675,1749096648845,-440.0,0.00019322,2]
[364416677,1749096648855,-440.0,0.00019322,2]
[364416679,1749096648865,-440.0,0.00019322,2]
[364416680,1749096648874,-440.0,0.00019323,2]
[364416682,1749096648885,-380.0,0.00019323,2]
[364416684,1749096648895,-1647.12,0.00019323,2]
[364416686,1749096648905,-505.83,0.00019323,2]
[364416688,1749096648915,-1460.94,0.00019327,2]
[364416690,1749096648924,-5970.49,0.00019327,2]
[364416692,1749096648933,-440.0,0.00019327,2]
[364416694,1749096648942,-654.22,0.00019327,2]
[364416696,1749096648951,-634.9,0.00019327,2]
[364416698,1749096648961,-834.95,0.00019327,2]
[364416700,1749096648970,-500.0,0.00019329,2]
[364416702,1749096648980,-25559.03518315,0.00019329,2]
[364416704,1749096648989,-1945.49950924,0.00019348,2]
[364416706,1749096648998,-45527.75,0.00019422,2]
[364416708,1749096649007,-151.0,0.00019422,2]
[364416710,1749096649017,-229.139481,0.00019422,2]
[364416712,1749096649028,-229.139481,0.00019422,2]
[364416714,1749096649037,-151.0,0.00019422,2]
[364416716,1749096649047,-162.527689,0.00019422,2]
[364416718,1749096649055,-162.527689,0.00019422,2]
[364416720,1749096649065,-151.0,0.00019422,2]
[364416722,1749096649074,-231.503408,0.00019422,2]
[364416724,1749096649083,-231.503408,0.00019422,2]
[364416726,1749096649093,-872.65,0.00019452,2]
[364416728,1749096649102,-1001.54,0.00019452,2]
[364416730,1749096649111,-1271.59,0.00019452,2]
[364416732,1749096649120,-440.0,0.00019452,2]
[364416733,1749096649130,-158.9478231,0.00019452,2]
[364416735,1749096649139,-530.83,0.00019452,2]
[364416738,1749096649149,-440.0,0.00019452,2]
[364416740,1749096649159,-829.91,0.00019452,2]
[364416742,1749096649168,-1222.49,0.00019452,2]
[364416743,1749096649177,-300.0,0.00019489,2]
[364416745,1749096649186,-287.0,0.00019489,2]
[364416747,1749096649195,-1945.49950924,0.0001959,2]
[364416749,1749096649204,-5970.49,0.00019595,2]
[364416751,1749096649213,-5970.49,0.00019595,2]
[364416753,1749096649223,-440.0,0.00019596,2]
[364416755,1749096649233,-440.0,0.00019596,2]
[364416757,1749096649243,-494.06,0.00019596,2]
[364416759,1749096649253,-440.0,0.00019596,2]
[364416761,1749096649263,-440.0,0.00019596,2]
[364416763,1749096649271,-440.0,0.00019596,2]
[364416765,1749096649281,-440.0,0.00019596,2]
[364416777,1749096649372,-440.0,0.00019596,2]
[364416779,1749096649394,-440.0,0.00019596,2]
[364416781,1749096649404,-449.86,0.00019596,2]
[364416783,1749096649414,-440.0,0.00019596,2]
[364416785,1749096649424,-440.0,0.00019596,2]
[364416787,1749096649433,-440.0,0.00019596,2]
[364416789,1749096649443,-440.0,0.00019596,2]
[364416790,1749096649451,-440.0,0.00019597,2]
[364416791,1749096649461,-1647.12,0.00019597,2]
[364416792,1749096649470,-505.83,0.00019597,2]
[364416793,1749096649479,-1460.94,0.00019601,2]
[364416794,1749096649489,-440.0,0.00019601,2]
[364416795,1749096649498,-654.22,0.00019601,2]
[364416796,1749096649508,-634.9,0.00019601,2]
[364416797,1749096649517,-834.95,0.00019601,2]
[364416798,1749096649526,-872.65,0.00019726,2]
[364416799,1749096649536,-1001.54,0.00019726,2]
[364416800,1749096649545,-1271.59,0.00019726,2]
[364416801,1749096649556,-440.0,0.00019726,2]
[364416802,1749096649567,-530.83,0.00019726,2]
[364416803,1749096649576,-440.0,0.00019726,2]
[364416804,1749096649586,-829.91,0.00019726,2]
[364416805,1749096649595,-1222.49,0.00019726,2]
[364416806,1749096649604,-180.1928063,0.00019746,2]
[364416807,1749096649613,-1005.89565187,0.00019818,2]
[364416808,1749096649622,-1945.49950924,0.00019831,2]
[364416809,1749096649631,-178.90431822,0.0001987,2]
[364416810,1749096649640,-625.654,0.0001987,2]
[364416811,1749096649650,-440.0,0.0001987,2]
[364416812,1749096649659,-440.0,0.0001987,2]
[364416813,1749096649668,-494.06,0.0001987,2]
[364416814,1749096649680,-440.0,0.0001987,2]
[364416815,1749096649690,-440.0,0.0001987,2]
[364416816,1749096649699,-406.77,0.0001987,2]
[364416817,1749096649708,-440.0,0.0001987,2]
[364416818,1749096649718,-440.0,0.0001987,2]
[364416819,1749096649726,-440.0,0.0001987,2]
[364416820,1749096649736,-449.86,0.0001987,2]
[364416821,1749096649745,-226.4584646,0.0001987,2]
[364416822,1749096649754,-440.0,0.0001987,2]
[364416824,1749096649765,-440.0,0.0001987,2]
[364416825,1749096649774,-440.0,0.0001987,2]
[364416826,1749096649784,-440.0,0.00019871,2]
[364416828,1749096649793,-151.0,0.00019871,2]
[364416830,1749096649804,-1647.12,0.00019871,2]
[364416832,1749096649816,-505.83,0.00019871,2]
[364416834,1749096649825,-151.0,0.00019871,2]
[364416836,1749096649835,-151.0,0.00019871,2]
[364416838,1749096649844,-1460.94,0.00019875,2]
[364416840,1749096649855,-440.0,0.00019875,2]
[364416842,1749096649864,-654.22,0.00019875,2]
[364416844,1749096649874,-634.9,0.00019875,2]
[364416846,1749096649884,-834.95,0.00019875,2]
[364416848,1749096649894,-5970.49,0.00019898,2]
[364416850,1749096649903,-500.0,0.00019899,2]
[364416852,1749096649913,-439.4364531,0.00019899,2]
[364416854,1749096649922,-500.0,0.00019973,2]
[364416856,1749096649931,-160.33666408,0.00019973,2]
[364416857,1749096649940,-575.67400562,0.00019973,2]
[364416859,1749096649950,-500.0,0.00019973,2]
[364416861,1749096649960,-500.0,0.00019973,2]
[364416864,1749096649969,-500.0,0.00019973,2]
[364416865,1749096649979,-500.0,0.00019973,2]
[364416867,1749096649988,-501.12311365,0.00019973,2]
[364416869,1749096649997,-500.0,0.00019973,2]
[364416871,1749096650007,-501.06385381,0.00019973,2]
[364416873,1749096650017,-501.19042897,0.00019973,2]
[364416875,1749096650027,-321.31102092,0.00019999,2]
[364416877,1749096650038,-500.0,0.00019999,2]
[364416879,1749096650047,-500.0,0.00019999,2]
[364416881,1749096650056,-500.0,0.00019999,2]
[364416883,1749096650066,-500.0,0.00019999,2]
[364416885,1749096650075,-500.0,0.00019999,2]
[364416887,1749096650085,-500.0,0.00019999,2]
[364416889,1749096650094,-500.0,0.00019999,2]
[364416891,1749096650104,-513.02928918,0.00019999,2]
[364416893,1749096650113,-500.0,0.00019999,2]
[364416895,1749096650123,-500.0,0.00019999,2]
[364416897,1749096650132,-500.0,0.00019999,2]
[364416899,1749096650141,-500.0,0.00019999,2]
[364416901,1749096650150,-3000.0,0.0002,2]
[364416903,1749096650160,-171421.0,0.0002,2]
[364416905,1749096650169,-9147.0,0.0002,2]
[364416907,1749096650179,-872.65,0.0002,2]
[364416909,1749096650189,-1001.54,0.0002,2]
[364416911,1749096650198,-1271.59,0.0002,2]
[364416913,1749096650208,-440.0,0.0002,2]
[364416915,1749096650218,-151.0,0.0002,2]
[364416917,1749096650230,-229.139481,0.0002,2]
[364416919,1749096650242,-229.139481,0.0002,2]
[364416921,1749096650252,-151.0,0.0002,2]
[364416924,1749096650262,-162.527689,0.0002,2]
[364416925,1749096650272,-162.527689,0.0002,2]
[364416928,1749096650282,-530.83,0.0002,2]
[364416929,1749096650292,-151.0,0.0002,2]
[364416931,1749096650302,-231.503408,0.0002,2]
[364416933,1749096650311,-231.503408,0.0002,2]
[364416935,1749096650321,-4000.0,0.0002,4]
[364416937,1749096650331,-440.0,0.0002,2]
[364416939,1749096650341,-829.91,0.0002,2]
[364416941,1749096650350,-1222.49,0.0002,2]
[364416943,1749096650361,-3000.0,0.0002001,2]
[364416945,1749096650370,-3000.0,0.0002002,2]
[364416947,1749096650380,-3000.0,0.0002003,2]
[364416949,1749096650390,-3000.0,0.0002004,2]
[364416951,1749096650399,-5970.49,0.00020049,2]
[364416953,1749096650409,-5970.49,0.00020049,2]
[364416955,1749096650419,-5970.49,0.00020049,2]
[364416957,1749096650429,-5970.49,0.00020049,2]
[364416959,1749096650439,-5970.59459655,0.00020049,2]
[364416961,1749096650449,-3000.0,0.0002005,2]
[364416963,1749096650458,-3000.0,0.0002006,2]
[364416965,1749096650471,-151.0,0.0002006,2]
[364416967,1749096650482,-1500.0,0.00020068,2]
[364416968,1749096650492,-3000.0,0.0002007,2]
[364416971,1749096650502,-1945.49950924,0.00020072,2]
[364416972,1749096650512,-3000.0,0.0002008,2]
[364416975,1749096650522,-3000.0,0.0002009,2]
[364416977,1749096650532,-3000.0,0.000201,2]
[364416978,1749096650549,-151.0,0.00020109,2]
[364416980,1749096650559,-151.0,0.00020109,2]
[364416982,1749096650570,-151.0,0.00020109,2]
[364416984,1749096650582,-3000.0,0.0002011,2]
[364416986,1749096650592,-3000.0,0.0002012,2]
[364416988,1749096650603,-3000.0,0.0002013,2]
[364416990,1749096650614,-3000.0,0.0002014,2]
[364416992,1749096650623,-549.99922018,0.00020144,2]
[364416994,1749096650634,-440.0,0.00020144,2]
[364416996,1749096650646,-494.06,0.00020144,2]
[364416998,1749096650656,-440.0,0.00020144,2]
[364417000,1749096650667,-440.0,0.00020144,2]
[364417002,1749096650678,-440.0,0.00020144,2]
[364417004,1749096650688,-440.0,0.00020144,2]
[364417006,1749096650699,-440.0,0.00020144,2]
[364417008,1749096650710,-449.86,0.00020144,2]
[364417010,1749096650720,-440.0,0.00020144,2]
[364417012,1749096650729,-440.0,0.00020144,2]
[364417014,1749096650740,-440.0,0.00020144,2]
[364417016,1749096650751,-440.0,0.00020145,2]
[364417018,1749096650761,-1647.12,0.00020145,2]
[364417021,1749096650771,-505.83,0.00020145,2]
[364417022,1749096650780,-1460.94,0.00020149,2]
[364417024,1749096650798,-440.0,0.00020149,2]
[364417026,1749096650815,-654.22,0.00020149,2]
[364417028,1749096650825,-301.31518669,0.00020149,2]
[364417030,1749096650835,-634.9,0.00020149,2]
[364417032,1749096650843,-834.95,0.00020149,2]
[364417034,1749096650853,-3000.0,0.0002015,2]
[364417036,1749096650861,-3000.0,0.0002016,2]
[364417038,1749096650869,-3000.0,0.0002017,2]
[364417039,1749096650877,-3000.0,0.0002018,2]
[364417041,1749096650885,-247.868203,0.00020187,2]
[364417043,1749096650892,-3000.0,0.0002019,2]
[364417045,1749096650901,-54633.3,0.00020199,2]
[364417047,1749096650911,-151.0,0.00020199,2]
[364417049,1749096650920,-151.0,0.00020199,2]
[364417051,1749096650929,-231.503408,0.00020199,2]
[364417053,1749096650938,-231.503408,0.00020199,2]
[364417055,1749096650948,-3000.0,0.000202,2]
[364417057,1749096650958,-162.527689,0.00020209,2]
[364417059,1749096650968,-162.527689,0.00020209,2]
[364417061,1749096650978,-3000.0,0.0002021,2]
[364417063,1749096650987,-3000.0,0.0002022,2]
[364417065,1749096650997,-3000.0,0.0002023,2]
[364417067,1749096651007,-151.0,0.00020239,2]
[364417068,1749096651017,-229.139481,0.00020239,2]
[364417071,1749096651027,-229.139481,0.00020239,2]
[364417073,1749096651040,-3000.0,0.0002024,2]
[364417074,1749096651049,-3000.0,0.0002025,2]
[364417076,1749096651060,-3000.0,0.0002026,2]
[364417078,1749096651069,-3000.0,0.0002027,2]
[364417080,1749096651079,-872.65,0.00020273,2]
[364417082,1749096651091,-1001.54,0.00020273,2]
[364417084,1749096651101,-1271.59,0.00020273,2]
[364417086,1749096651111,-440.0,0.00020273,2]
[364417088,1749096651120,-530.83,0.00020273,2]
[364417090,1749096651129,-440.0,0.00020273,2]
[364417092,1749096651139,-829.91,0.00020273,2]
[364417094,1749096651149,-1222.49,0.00020273,2]
[364417096,1749096651159,-500.0,0.00020279,2]
[364417098,1749096651169,-500.0,0.00020279,2]
[364417100,1749096651178,-500.0,0.00020279,2]
[364417102,1749096651188,-500.0,0.00020279,2]
[364417104,1749096651198,-3000.0,0.0002028,2]
[364417106,1749096651207,-3000.0,0.0002029,2]
[364417108,1749096651218,-3000.0,0.000203,2]
[364417110,1749096651227,-3000.0,0.0002031,2]
[364417112,1749096651237,-1945.49950924,0.00020314,3]
[364417114,1749096651248,-151.0,0.00020319,2]
[364417116,1749096651258,-151.0,0.00020319,2]
[364417118,1749096651268,-151.0,0.00020319,2]
[364417120,1749096651277,-151.0,0.00020319,2]
[364417122,1749096651291,-151.0,0.00020319,2]
[364417124,1749096651302,-3000.0,0.0002032,2]
[364417125,1749096651312,-151.0,0.0002032,2]
[364417127,1749096651322,-212.398048,0.0002032,2]
[364417130,1749096651331,-212.398048,0.0002032,2]
[364417132,1749096651341,-151.0,0.0002032,2]
[364417134,1749096651351,-151.0,0.0002032,2]
[364417136,1749096651360,-227.217897,0.0002032,2]
[364417138,1749096651370,-227.217897,0.0002032,2]
[364417139,1749096651379,-3000.0,0.0002033,2]
[364417141,1749096651388,-3000.0,0.0002034,2]
[364417143,1749096651397,-3000.0,0.0002035,2]
[364417145,1749096651406,-3000.0,0.0002036,2]
[364417147,1749096651416,-3433.017998,0.0002037,2]
[364417149,1749096651425,-583.46981414,0.00020418,2]
[364417151,1749096651435,-494.06,0.00020418,2]
[364417153,1749096651445,-340.0,0.00020418,2]
[364417155,1749096651454,-440.0,0.00020418,2]
[364417157,1749096651463,-440.0,0.00020418,2]
[364417159,1749096651473,-274.95898042,0.00020418,2]
[364417161,1749096651482,-440.0,0.00020418,2]
[364417164,1749096651491,-449.86,0.00020418,2]
[364417166,1749096651500,-440.0,0.00020418,2]
[364417168,1749096651510,-440.0,0.00020418,2]
[364417169,1749096651519,-440.0,0.00020418,2]
[364417171,1749096651528,-440.0,0.00020419,2]
[364417173,1749096651540,-151.0,0.00020419,2]
[364417175,1749096651550,-1647.12,0.00020419,2]
[364417177,1749096651559,-505.83,0.00020419,2]
[364417179,1749096651568,-151.0,0.00020419,2]
[364417181,1749096651578,-151.0,0.00020419,2]
[364417183,1749096651587,-1460.94,0.00020423,2]
[364417185,1749096651597,-440.0,0.00020423,2]
[364417187,1749096651606,-654.22,0.00020423,2]
[364417189,1749096651615,-472.97337424,0.00020423,2]
[364417211,1749096651818,-161.92662576,0.00020423,2]
[364417213,1749096651828,-834.95,0.00020423,2]
[364417215,1749096651837,-151.0,0.00020519,2]
[364417216,1749096651846,-151.0,0.00020519,2]
[364417218,1749096651856,-33.08160063,0.00020519,2]
[364417221,1749096651868,-117.91839937,0.00020519,2]
[364417223,1749096651877,-151.0,0.00020519,2]
[364417225,1749096651888,-207.4,0.00020519,2]
[364417227,1749096651897,-658.00303384,0.00020519,2]
[364417229,1749096651907,-1800.0,0.00020519,2]
[364417231,1749096651916,-500.0,0.00020519,2]
[364417233,1749096651925,-1003.84687244,0.00020519,2]
[364417235,1749096651936,-763.81453344,0.00020519,2]
[364417237,1749096651948,-32.33859412,0.00020519,2]
[364417239,1749096651957,-287.20827105,0.00020519,2]
[364417241,1749096651968,-212.79172895,0.00020519,2]
[364417243,1749096651978,-1800.0,0.00020519,2]
[364417245,1749096651987,-500.0,0.00020519,2]
[364417247,1749096651996,-1800.0,0.00020519,2]
[364417249,1749096652005,-500.0,0.00020519,2]
[364417251,1749096652014,-5000.0,0.00020519,2]
[364417253,1749096652024,-1800.0,0.00020519,2]
[364417255,1749096652033,-500.0,0.00020519,2]
[364417257,1749096652044,-1800.0,0.00020519,2]
[364417259,1749096652053,-500.0,0.00020519,2]
[364417261,1749096652062,-500.0,0.00020519,2]
[364417263,1749096652071,-1800.0,0.00020519,2]
[364417265,1749096652080,-500.0,0.00020519,2]
[364417267,1749096652089,-1800.0,0.00020519,2]
[364417269,1749096652098,-500.0,0.00020519,2]
[364417271,1749096652107,-1800.0,0.00020519,2]
[364417273,1749096652116,-500.0,0.00020519,2]
[364417275,1749096652125,-1800.0,0.00020519,2]
[364417277,1749096652135,-1800.0,0.00020519,2]
[364417279,1749096652144,-500.0,0.00020519,2]
[364417281,1749096652153,-1800.0,0.00020519,2]
[364417283,1749096652162,-500.0,0.00020519,2]
[364417285,1749096652171,-1800.0,0.00020519,2]
[364417287,1749096652180,-500.0,0.00020519,2]
[364417289,1749096652189,-1800.0,0.00020519,2]
[364417291,1749096652198,-500.0,0.00020519,2]
[364417292,1749096652207,-1800.0,0.00020519,2]
[364417293,1749096652216,-500.0,0.00020519,2]
[364417294,1749096652225,-500.0,0.00020521,2]
[364417295,1749096652235,-1000.0,0.00020521,2]
[364417296,1749096652244,-382.90269601,0.00020547,2]
[364417297,1749096652255,-872.65,0.00020547,2]
[364417299,1749096652265,-1001.54,0.00020547,2]
[364417300,1749096652274,-1271.59,0.00020547,2]
[364417302,1749096652283,-440.0,0.00020547,2]
[364417304,1749096652294,-530.83,0.00020547,2]
[364417306,1749096652304,-440.0,0.00020547,2]
[364417308,1749096652313,-829.91,0.00020547,2]
[364417310,1749096652322,-1222.49,0.00020547,2]
[364417312,1749096652331,-1945.49950924,0.00020555,3]
[364417314,1749096652340,-2557.84,0.000206,2]
[364417316,1749096652349,-2243.14,0.000206,2]
[364417318,1749096652359,-29732.0,0.000206,2]
[364417320,1749096652368,-206.705497,0.000206,2]
[364417322,1749096652377,-162.527689,0.000206,2]
[364417324,1749096652385,-162.527689,0.000206,2]
[364417326,1749096652394,-151.0,0.000206,2]
[364417328,1749096652404,-231.503408,0.000206,2]
[364417330,1749096652414,-231.503408,0.000206,2]
[364417332,1749096652423,-500.0,0.00020615,2]
[364417334,1749096652433,-500.0,0.00020653,2]
[364417336,1749096652442,-500.87830949,0.00020653,2]
[364417339,1749096652451,-500.0,0.00020653,2]
[364417341,1749096652461,-501.55473924,0.00020653,2]
[364417343,1749096652470,-505.67113354,0.00020653,2]
[364417345,1749096652480,-500.0,0.00020653,2]
[364417347,1749096652490,-500.0,0.00020653,2]
[364417349,1749096652500,-500.0,0.00020653,2]
[364417351,1749096652509,-500.0,0.00020653,2]
[364417353,1749096652518,-501.32049526,0.00020653,2]
[364417355,1749096652528,-500.0,0.00020653,2]